fUST/lending_fUST_20240821
["ID","MTS","AMOUNT","RATE_DAILY","PERIOD"]
[335470895,1724250638307,-500.0,0.00021629,2]
[335470897,1724250638317,-500.0,0.00022195,2]
[335470899,1724250638327,-307.5441869,0.00022694,2]
[335470901,1724250638338,-500.0,0.00023381,2]
[335470903,1724250638350,-500.30425983,0.00023726,2]
[335470905,1724250638360,-165.742226,0.00023896,2]
[335470907,1724250638370,-500.0,0.00024064,2]
[335470909,1724250638381,-500.0,0.00024205,2]
[335470910,1724250638391,-500.0,0.00024378,2]
[335470912,1724250638401,-2214.044729,0.00024428,2]
[335470914,1724250638411,-876.37905276,0.00024651,2]
[335470916,1724250638423,-300.0,0.00024654,2]
[335470918,1724250638433,-157.0,0.00024654,2]
[335470919,1724250638443,-380.0,0.00024658,2]
[335470921,1724250638453,-200.0,0.00024658,2]
[335470923,1724250638464,-435.0,0.00024658,2]
[335470925,1724250638474,-277.68803325,0.0002469,2]
[335470927,1724250638484,-882.99597685,0.00024728,2]
[335470929,1724250638494,-154.79102903,0.00025,2]
[335470931,1724250638505,-988.48376439,0.00025,2]
[335470932,1724250638515,-500.0,0.00025048,2]
[335470933,1724250638526,-200.0,0.0002541,15]
[335470934,1724250638537,-500.0,0.00025436,2]
[335470935,1724250638548,-11881.03264504,0.00026,120]
[335470936,1724250638561,-18118.96735496,0.00026,120]
[335470937,1724250638574,-500.0,0.00026356,2]
[335470938,1724250638584,-500.0,0.00026392,2]
[335470939,1724250638595,-500.0,0.00026805,2]
[335470940,1724250638607,-152.54,0.00027,31]
[335470941,1724250638619,-152.54,0.00027,31]
[335470942,1724250638628,-152.54,0.00027,31]
[335470943,1724250638639,-152.54,0.00027,31]
[335470944,1724250638648,-500.0,0.0002705,2]
[335470945,1724250638659,-500.0,0.00027137,2]
[335470946,1724250638668,-214.498104,0.00027167,2]
[335470947,1724250638679,-1208.90167948,0.0002739,2]
[335470948,1724250638688,-500.0,0.00027416,2]
[335470949,1724250638699,-350.0,0.000275,4]
[335470950,1724250638709,-43829.33213647,0.000275,2]
[335470951,1724250638720,-500.0,0.00027888,2]
[335470952,1724250638731,-63527.42,0.0002798,3]
[335470953,1724250638741,-29960.71059596,0.0002799,2]
[335470954,1724250638751,-500.0,0.00028069,2]
[335470955,1724250638761,-500.0,0.00028221,2]
[335470956,1724250638776,-500.0,0.00028471,2]
[335470957,1724250638787,-500.0,0.00028586,2]
[335470958,1724250638797,-152.54,0.000289,31]
[335470959,1724250638810,-152.54,0.000289,31]
[335470960,1724250638819,-152.54,0.000289,31]
[335470961,1724250638829,-152.54,0.000289,31]
[335470962,1724250638839,-152.54,0.000289,31]
[335470963,1724250638848,-152.54,0.000289,31]
[335470964,1724250638858,-152.54,0.000289,31]
[335470965,1724250638867,-152.54,0.000289,31]
[335470966,1724250638877,-852.4833976,0.00029,2]
[335470967,1724250638887,-500.0,0.00029419,2]
[335470968,1724250638897,-500.0,0.00029435,2]
[335470969,1724250639433,-500.0,0.00029436,2]
[335470970,1724250639443,-31649.16085198,0.0002988,7]
[335470971,1724250639453,-700.0,0.00029889,2]
[335470972,1724250639463,-4708.39902462,0.000299,2]
[335470973,1724250639473,-10000.0,0.0003,20]
[335470974,1724250639482,-178.72751622,0.0003,5]
[335470975,1724250639492,-504.24371509,0.0003,2]
[335470976,1724250639501,-500.0,0.00030336,7]
[335470977,1724250639511,-1067.25950999,0.00030519,2]
[335470978,1724250639528,-500.0,0.00030573,7]
[335470979,1724250639537,-500.0,0.00030718,7]
[335470980,1724250639547,-151.0,0.00030792,3]
[335470981,1724250639557,-500.0,0.00030818,7]
[335470982,1724250639567,-152.54,0.000309,31]
[335470983,1724250639576,-152.54,0.000309,31]
[335470984,1724250639585,-152.54,0.000309,31]
[335470985,1724250639595,-152.54,0.000309,31]
[335470986,1724250639605,-152.54,0.000309,31]
[335470987,1724250639615,-152.54,0.000309,31]
[335470988,1724250639627,-152.54,0.000309,31]
[335470989,1724250639637,-152.54,0.000309,31]
[335470990,1724250639648,-1223.51120305,0.000309,2]
[335470991,1724250639658,-6068.14191295,0.0003097,4]
[335471036,1724250640781,-884.36033444,0.0003097,4]
[335471037,1724250640793,-19416.07683731,0.0003097,4]
[335471038,1724250640802,-26368.5790847,0.0003098,4]
[335471039,1724250640812,-232.97041993,0.00030989,2]
[335471040,1724250640821,-500.0,0.00030989,2]
[335471041,1724250640830,-500.0,0.00030989,2]
[335471042,1724250640839,-500.0,0.00030989,2]
[335471043,1724250640849,-500.0,0.00030989,2]
[335471044,1724250640858,-311.19747554,0.00030989,2]
[335471045,1724250640868,-500.0,0.00030989,2]
[335471046,1724250640879,-26368.5790847,0.0003099,4]
[335471047,1724250640888,-10000.0,0.00031,22]
[335471048,1724250640898,-5000.0,0.00031,4]
[335471049,1724250640907,-20000.00000013,0.00031,2]
[335471050,1724250640916,-835.74715033,0.00031,2]
[335471051,1724250640926,-5041.43498642,0.00031123,2]
[335471052,1724250640936,-1067.25950999,0.00031249,2]
[335471053,1724250640945,-26368.5790847,0.00031405,4]
[335471054,1724250640954,-5041.43498642,0.00031411,2]
[335471055,1724250640963,-1331.62608614,0.00031555,2]
[335471105,1724250753652,1734.00354599,0.0002031,120]
[335471106,1724250888965,1772.10825887,0.00013971,2]
[335471107,1724251439676,10000.0,0.0002031,120]
[335471108,1724251449316,10000.0,0.0002031,120]
[335471109,1724251458821,10000.0,0.0002031,120]
[335471110,1724251467431,10000.0,0.0002031,120]
[335471111,1724251490166,7870.0,0.0002031,120]
[335471112,1724251669593,8000.0,0.00014,2]
[335471113,1724251678387,3000.0,0.00014,2]
[335471114,1724251777334,1022.46734268,0.00013971,2]
[335471117,1724251792209,1022.46734268,0.00013971,2]
[335471223,1724251838498,-182.323388,0.00014247,2]
[335471224,1724251838511,-4485.854319,0.000163,2]
[335471225,1724251838522,-1111.18149522,0.00016437,2]
[335471226,1724251838534,-166.78984,0.00018565,2]
[335471227,1724251838546,-2640.65836955,0.00018571,2]
[335471228,1724251838557,-166.78984,0.00018662,2]
[335471229,1724251838568,-166.78984,0.00018758,2]
[335471230,1724251838583,-166.78984,0.00018855,2]
[335471231,1724251838594,-166.78984,0.00018952,2]
[335471232,1724251838605,-166.78984,0.00019049,2]
[335471233,1724251838616,-700.0,0.00019077,2]
[335471234,1724251838626,-700.0,0.00019113,2]
[335471235,1724251838637,-700.0,0.00019144,2]
[335471236,1724251838648,-166.78984,0.00019145,2]
[335471237,1724251838659,-168.998138,0.00019178,2]
[335471238,1724251838669,-700.0,0.00019204,2]
[335471239,1724251838688,-700.0,0.0001923,2]
[335471240,1724251838699,-166.78984,0.00019242,2]
[335471241,1724251838711,-700.0,0.00019279,2]
[335471242,1724251838721,-166.78984,0.00019339,2]
[335471243,1724251838731,-166.78984,0.00019436,2]
[335471244,1724251838741,-700.0,0.00019501,2]
[335471245,1724251838751,-700.0,0.00019526,2]
[335471246,1724251838762,-500.0,0.00019532,2]
[335471247,1724251838772,-166.78984,0.00019532,2]
[335471248,1724251838785,-476.8739812,0.00019798,2]
[335471249,1724251838795,-700.0,0.00019906,2]
[335471250,1724251838805,-700.0,0.00019999,2]
[335471251,1724251838816,-350.0,0.0002,7]
[335471252,1724251838826,-196.84193323,0.00020299,2]
[335471253,1724251838835,-35330.8068345,0.000203,2]
[335471254,1724251838846,-97237.14381211,0.0002031,2]
[335471255,1724251838856,-226.13158555,0.0002031,2]
[335471256,1724251838867,-10513.28749774,0.0002031,2]
[335471257,1724251838880,-1260.81854444,0.0002031,2]
[335471258,1724251838893,-287.17173053,0.0002031,2]
[335471259,1724251838905,-500.0,0.00020348,2]
[335471260,1724251838918,-500.0,0.00020373,2]
[335471261,1724251838929,-446.08518865,0.00020373,2]
[335471262,1724251838943,-700.0,0.00020423,2]
[335471263,1724251838953,-700.0,0.00020514,2]
[335471264,1724251838963,-700.0,0.0002063,2]
[335471265,1724251838974,-182.323388,0.00020707,2]
[335471266,1724251838985,-500.0,0.00020721,2]
[335471267,1724251838995,-465.59369906,0.00020788,2]
[335471268,1724251839005,-1000.0,0.00020921,2]
[335471269,1724251839016,-500.0,0.00020945,2]
[335471270,1724251839027,-500.0,0.00020994,2]
[335471271,1724251839038,-5000.0,0.00021,2]
[335471272,1724251839050,-500.0,0.00021219,2]
[335471273,1724251839062,-20977.2963545,0.00021918,2]
[335471274,1724251839072,-700.0,0.00021957,2]
[335471275,1724251839084,-302.51602579,0.00022,2]
[335471276,1724251839096,-700.0,0.00022025,2]
[335471277,1724251839106,-302.51602579,0.0002222,2]
[335471278,1724251839119,-302.51602579,0.0002244,2]
[335471279,1724251839130,-500.0,0.00022561,2]
[335471280,1724251839140,-302.51602579,0.0002266,2]
[335471281,1724251839152,-500.0,0.00022845,2]
[335471282,1724251839163,-302.51602579,0.0002288,2]
[335471283,1724251839174,-201.50174106,0.00023,2]
[335471284,1724251839187,-700.0,0.00023034,2]
[335471285,1724251839198,-453.77403868,0.000231,4]
[335471286,1724251839209,-500.0,0.00023296,2]
[335471287,1724251839220,-453.77403868,0.0002332,4]
[335471288,1724251839231,-280.3,0.00023535,2]
[335471289,1724251839242,-453.77403868,0.0002354,4]
[335471290,1724251839253,-35330.8068345,0.00023689,3]
[335471291,1724251839265,-700.0,0.00023699,2]
[335471292,1724251839276,-453.77403868,0.0002376,4]
[335471293,1724251839288,-700.0,0.00023881,2]
[335471294,1724251839299,-604.15665691,0.0002398,4]
[335471295,1724251839310,-700.0,0.00024176,2]
[335471296,1724251839322,-150.112233,0.000242,3]
[335471297,1724251839335,-700.0,0.00024205,2]
[335471298,1724251839346,-500.0,0.00024277,2]
[335471299,1724251839357,-10343.5134042,0.00024299,2]
[335471300,1724251839367,-605.32084287,0.00024307,2]
[335471301,1724251839378,-300.16514461,0.00024307,2]
[335471302,1724251839389,-500.0,0.00024307,2]
[335471303,1724251839398,-500.0,0.00024307,2]
[335471304,1724251839408,-500.0,0.00024307,2]
[335471305,1724251839418,-500.0,0.00024307,2]
[335471306,1724251839428,-500.0,0.00024307,2]
[335471307,1724251839439,-615.81572613,0.00024307,2]
[335471308,1724251839449,-500.0,0.00024307,2]
[335471309,1724251839458,-500.0,0.00024307,2]
[335471310,1724251839469,-500.0,0.00024307,2]
[335471311,1724251839478,-500.0,0.00024307,2]
[335471312,1724251839488,-500.0,0.00024307,2]
[335471313,1724251839498,-500.0,0.00024307,2]
[335471314,1724251839508,-500.0,0.00024307,2]
[335471315,1724251839518,-500.0,0.00024307,2]
[335471316,1724251839528,-500.0,0.00024329,2]
[335471317,1724251839538,-160.8404123,0.00024349,2]
[335471318,1724251839548,-435.0,0.00024366,2]
[335471319,1724251839558,-953.53947811,0.00024498,2]
[335471320,1724251839568,-782.718708,0.00024498,2]
[335471321,1724251839578,-154.74467129,0.00024498,2]
[335471322,1724251839588,-500.0,0.00024528,2]
[335471323,1724251839599,-500.0,0.00024544,2]
[335471324,1724251839609,-280.3,0.00024571,2]
[335471325,1724251839620,-154.74467129,0.00024571,2]
[335471326,1724251839631,-154.74467129,0.00024571,2]
[335471327,1724251839641,-183.32510841,0.00024571,2]
[335471328,1724251839651,-154.78144652,0.00024571,2]
[335471329,1724251839662,-285.48087373,0.00024577,2]
[335471330,1724251839674,-700.0,0.0002459,2]
[335471331,1724251839687,-260.03734747,0.00024618,2]
[335471332,1724251839699,-631.83554832,0.00024658,2]
[335471333,1724251839710,-882.99597685,0.00024728,2]
[335471334,1724251839721,-161.666964,0.000248,5]
[335471335,1724251839731,-500.0,0.00024827,2]
[335471336,1724251839741,-500.0,0.00024827,2]
[335471337,1724251839754,-201.28991957,0.00024827,2]
[335471338,1724251839767,-401.02347447,0.00024827,2]
[335471339,1724251839779,-500.0,0.00024827,2]
[335471340,1724251839791,-504.54855206,0.00024827,2]
[335471341,1724251839804,-700.0,0.00024845,2]
[335471342,1724251839817,-700.0,0.0002492,2]
[335471343,1724251839828,-500.0,0.00024936,2]
[335471344,1724251839840,-247.41304477,0.00025,2]
[335471345,1724251839852,-308.47910106,0.00025,2]
[335471346,1724251839863,-154.80649189,0.00025,2]
[335471347,1724251839872,-191.34123187,0.00025,2]
[335471348,1724251839883,-369.96805713,0.00025,30]
[335471349,1724251839893,-700.0,0.00025289,2]
[335471350,1724251839903,-700.0,0.00025365,2]
[335471351,1724251839913,-1000.0,0.00025375,2]
[335471352,1724251839923,-661.32016401,0.00025375,2]
[335471353,1724251839933,-401.4765779,0.00025375,2]
[335471354,1724251839946,-150.112233,0.000255,7]
[335471355,1724251839956,-700.0,0.00025503,2]
[335471356,1724251839967,-280.3,0.00025607,2]
[335471357,1724251839977,-500.0,0.00025922,2]
[335471358,1724251839988,-5000.0,0.00026,2]
[335471365,1724251840546,-150.112233,0.00026,10]
[335471368,1724251840566,-700.0,0.00026044,2]
[335471370,1724251840577,-500.0,0.00026124,2]
[335471371,1724251840586,-700.0,0.00026267,2]
[335471372,1724251840596,-1500.0,0.00026273,2]
[335471373,1724251840605,-700.0,0.00026474,2]
[335471374,1724251840615,-2982.82643315,0.00026506,2]
[335471375,1724251840625,-280.3,0.00026643,2]
[335471376,1724251840634,-150.112233,0.000269,9]
[335471377,1724251840644,-500.0,0.0002695,2]
[335471378,1724251840654,-700.0,0.00026987,2]
[335471379,1724251840665,-211.39,0.00027,31]
[335471380,1724251840677,-211.39,0.00027,31]
[335471381,1724251840691,-211.39,0.00027,31]
[335471382,1724251840701,-211.39,0.00027,31]
[335471383,1724251840712,-211.39,0.00027,31]
[335471384,1724251840722,-211.39,0.00027,31]
[335471385,1724251840732,-211.39,0.00027,31]
[335471386,1724251840741,-211.39,0.00027,31]
[335471387,1724251840751,-211.39,0.00027,31]
[335471388,1724251840761,-211.39,0.00027,31]
[335471389,1724251840771,-211.39,0.00027,31]
[335471390,1724251840780,-211.39,0.00027,31]
[335471391,1724251840790,-199.0,0.00027,2]
[335471392,1724251840799,-700.0,0.00027042,2]
[335471393,1724251840809,-182.323388,0.00027167,2]
[335471394,1724251840819,-150.112233,0.000272,8]
[335471395,1724251840829,-2000.0,0.00027378,2]
[335471396,1724251840839,-207.87011392,0.00027397,2]
[335471397,1724251840848,-700.0,0.00027416,2]
[335471398,1724251840858,-280.3,0.00027679,2]
[335471399,1724251840869,-369.21673832,0.00028,30]
[335471400,1724251840879,-700.0,0.00028014,2]
[335471401,1724251840889,-500.0,0.00028111,2]
[335471402,1724251840899,-150.112233,0.000283,9]
[335471403,1724251840909,-150.112233,0.000284,9]
[335471404,1724251840918,-2982.82643315,0.00028604,2]
[335471405,1724251840928,-2500.0,0.00028643,4]
[335471406,1724251840943,-3218.19363116,0.00028667,2]
[335471407,1724251840953,-280.3,0.00028715,2]
[335471408,1724251840962,-700.0,0.00028872,2]
[335471409,1724251840973,-211.39,0.000289,31]
[335471410,1724251840982,-211.39,0.000289,31]
[335471411,1724251840992,-211.39,0.000289,31]
[335471412,1724251841002,-211.39,0.000289,31]
[335471413,1724251841011,-211.39,0.000289,31]
[335471414,1724251841021,-211.39,0.000289,31]
[335471415,1724251841031,-211.39,0.000289,31]
[335471416,1724251841041,-211.39,0.000289,31]
[335471417,1724251841052,-211.39,0.000289,31]
[335471418,1724251841062,-211.39,0.000289,31]
[335471419,1724251841072,-211.39,0.000289,31]
[335471420,1724251841081,-211.39,0.000289,31]
[335471421,1724251841091,-211.39,0.000289,31]
[335471422,1724251841100,-211.39,0.000289,31]
[335471423,1724251841110,-211.39,0.000289,31]
[335471424,1724251841119,-211.39,0.000289,31]
[335471425,1724251841128,-211.39,0.000289,31]
[335471426,1724251841138,-211.39,0.000289,31]
[335471427,1724251841147,-211.39,0.000289,31]
[335471428,1724251841157,-211.39,0.000289,31]
[335471429,1724251841167,-211.39,0.000289,31]
[335471430,1724251841176,-211.39,0.000289,31]
[335471431,1724251841191,-211.39,0.000289,31]
[335471432,1724251841200,-211.39,0.000289,31]
[335471433,1724251841209,-150.112235,0.000291,6]
[335471434,1724251841219,-170.626095,0.00029345,2]
[335471435,1724251841228,-500.0,0.00029428,2]
[335471436,1724251841238,-221482.4281,0.00029546,2]
[335471437,1724251841247,-35330.8068345,0.00029547,3]
[335471438,1724251841257,-500.0,0.00029557,2]
[335471439,1724251841269,-150.0,0.00029573,5]
[335471440,1724251841279,-150.112233,0.000296,5]
[335471441,1724251841290,-150.112233,0.000296,10]
[335471442,1724251841301,-500.0,0.00029626,2]
[335471443,1724251841312,-500.0,0.00029748,2]
[335471444,1724251841322,-280.3,0.00029751,2]
[335471445,1724251841332,-5041.43498642,0.0002982,2]
[335471446,1724251841342,-3218.19363113,0.00029975,2]
[335471447,1724251841353,-10000.0,0.0003,20]
[335471448,1724251841362,-178.72751622,0.0003,5]
[335471449,1724251841372,-504.19337631,0.0003,2]
[335471450,1724251841381,-3000.0,0.00030042,4]
[335471451,1724251841391,-500.0,0.00030063,7]
[335471452,1724251841402,-700.0,0.0003009,7]
[335471453,1724251841413,-300.0241823,0.00030121,5]
[335471454,1724251841425,-5041.43498642,0.00030134,2]
[335471455,1724251841439,-5041.43498642,0.00030138,2]
[335471456,1724251841450,-604.59709643,0.000303,2]
[335471457,1724251841461,-500.0,0.0003036,7]
[335471458,1724251841470,-150.112233,0.000304,7]
[335471459,1724251841480,-700.0,0.0003045,7]
[335471460,1724251841490,-1491.33309565,0.000305,10]
[335471461,1724251841499,-35330.8068345,0.00030552,4]
[335471462,1724251841509,-5041.43498642,0.00030607,2]
[335471463,1724251841519,-2982.82643315,0.00030703,2]
[335471464,1724251841528,-5041.43498642,0.00030774,2]
[335471465,1724251841538,-280.3,0.00030787,3]
[335471466,1724251841550,-151.0,0.00030787,3]
[335471467,1724251841560,-150.112233,0.000308,5]
[335471468,1724251841570,-499.3,0.00030858,7]
[335471469,1724251841579,-211.39,0.000309,31]
[335471470,1724251841589,-211.39,0.000309,31]
[335471471,1724251841598,-211.39,0.000309,31]
[335471472,1724251841608,-211.39,0.000309,31]
[335471473,1724251841618,-211.39,0.000309,31]
[335471474,1724251841627,-211.39,0.000309,31]
[335471475,1724251841637,-211.39,0.000309,31]
[335471476,1724251841647,-211.39,0.000309,31]
[335471477,1724251841658,-211.39,0.000309,31]
[335471478,1724251841675,-211.39,0.000309,31]
[335471479,1724251841688,-211.39,0.000309,31]
[335471480,1724251841699,-211.39,0.000309,31]
[335471481,1724251841710,-211.39,0.000309,31]
[335471482,1724251841720,-211.39,0.000309,31]
[335471483,1724251841731,-211.39,0.000309,31]
[335471484,1724251841743,-211.39,0.000309,31]
[335471485,1724251841752,-211.39,0.000309,31]
[335471486,1724251841763,-211.39,0.000309,31]
[335471487,1724251841774,-211.39,0.000309,31]
[335471488,1724251841784,-211.39,0.000309,31]
[335471489,1724251841795,-211.39,0.000309,31]
[335471490,1724251841806,-211.39,0.000309,31]
[335471491,1724251841817,-211.39,0.000309,31]
[335471492,1724251841827,-211.39,0.000309,31]
[335471493,1724251841837,-700.0,0.00030916,7]
[335471494,1724251841847,-700.0,0.0003093,7]
[335471495,1724251841857,-10000.0,0.00031,21]
[335471496,1724251841868,-265.206436,0.00031,2]
[335471497,1724251841878,-150.112233,0.00031,8]
[335471498,1724251841887,-225.0,0.00031,4]
[335471499,1724251841898,-20000.00000113,0.00031,2]
[335471500,1724251841908,-5000.00105187,0.00031,4]
[335471501,1724251841919,-588.73015469,0.00031,120]
[335471502,1724251841930,-700.0,0.00031025,7]
[335471503,1724251841942,-5041.43498642,0.00031175,2]
[335471504,1724251841952,-2000.0,0.000312,4]
[335471505,1724251841963,-700.0,0.00031263,7]
[335471506,1724251841973,-5041.43498643,0.00031269,2]
[335471507,1724251841983,-3218.19363113,0.00031284,2]
[335471508,1724251841994,-700.0,0.0003131,7]
[335471509,1724251842003,-700.0,0.00031327,7]
[335471510,1724251842013,-700.0,0.0003136,7]
[335471511,1724251842023,-153.0,0.00031433,2]
[335471512,1724251842032,-153.0,0.00031433,2]
[335471513,1724251842042,-153.0,0.00031433,2]
[335471514,1724251842051,-153.0,0.00031433,2]
[335471515,1724251842060,-153.0,0.00031433,2]
[335471516,1724251842070,-153.0,0.00031433,2]
[335471517,1724251842080,-153.0,0.00031433,2]
[335471518,1724251842089,-153.0,0.00031433,2]
[335471519,1724251842100,-153.0,0.00031433,2]
[335471520,1724251842109,-153.0,0.00031433,2]
[335471521,1724251842119,-842.81250898,0.00031448,2]
[335471522,1724251842128,-119314.52037189,0.00031454,15]
[335471523,1724251842138,-35330.8068345,0.00031454,4]
[335471524,1724251842148,-153.0,0.00031465,2]
[335471525,1724251842157,-153.0,0.00031465,2]
[335471526,1724251842167,-153.0,0.00031465,2]
[335471527,1724251842177,-153.0,0.00031465,2]
[335471528,1724251842189,-2000.0,0.000315,15]
[335471529,1724251842198,-151.0,0.00031527,7]
[335471530,1724251842209,-151.0,0.00031527,7]
[335471531,1724251842218,-151.0,0.00031527,7]
[335471532,1724251842228,-36557.75162801,0.00031528,4]
[335471533,1724251842386,-69434.66887499,0.00031528,4]
[335471534,1724251842396,-151.0,0.00031538,7]
[335471535,1724251842406,-151.0,0.00031538,7]
[335471536,1724251842416,-151.0,0.00031538,7]
[335471537,1724251842426,-809.955,0.00031538,7]
[335471538,1724251842439,-809.955,0.00031538,7]
[335471539,1724251842449,-176.621042,0.00031538,7]
[335471540,1724251842458,-176.621042,0.00031538,7]
[335471541,1724251842468,-176.621042,0.00031538,7]
[335471542,1724251842477,-176.621042,0.00031538,7]
[335471543,1724251842487,-165.241667,0.00031538,7]
[335471544,1724251842496,-165.241667,0.00031538,7]
[335471545,1724251842506,-165.241667,0.00031538,7]
[335471546,1724251842515,-165.241667,0.00031538,7]
[335471547,1724251842525,-151.0,0.00031547,7]
[335471548,1724251842535,-151.0,0.00031547,7]
[335471549,1724251842545,-165704.77643489,0.00031548,2]
[335471550,1724251842554,-151.0,0.00031548,7]
[335471551,1724251842563,-151.0,0.00031548,7]
[335471552,1724251842574,-151.0,0.00031548,7]
[335471553,1724251842583,-151.0,0.00031548,7]
[335471554,1724251842594,-151.0,0.00031548,7]
[335471555,1724251842604,-172.222689,0.00031548,7]
[335471556,1724251842615,-809.955,0.00031548,7]
[335471557,1724251842624,-809.955,0.00031548,7]
[335471558,1724251842634,-176.621042,0.00031548,7]
[335471559,1724251842645,-176.621042,0.00031548,7]
[335471560,1724251842655,-165.241667,0.00031548,7]
[335471561,1724251842667,-165.241667,0.00031548,7]
[335471562,1724251842681,-151.0,0.00031548,7]
[335471563,1724251842696,-151.0,0.00031548,7]
[335471564,1724251842706,-285.3614456,0.00031555,3]
[335471565,1724251842716,-3500.0,0.00031559,4]
[335471566,1724251842727,-150.112233,0.000317,10]
[335471567,1724251842738,-151.0,0.00031711,7]
[335471568,1724251842749,-151.0,0.00031711,7]
[335471569,1724251842761,-151.0,0.00031711,7]
[335471570,1724251842771,-700.0,0.00031798,7]
[335471571,1724251842780,-280.3,0.00031823,3]
[335471572,1724251842789,-151.0,0.00031823,3]
[335471573,1724251842799,-842.81250894,0.00031832,2]
[335471574,1724251842808,-150.112233,0.000319,10]
[335471575,1724251842818,-221.903199,0.00031988,7]
[335471576,1724251842828,-151.0,0.00031988,7]
[335471577,1724251842837,-151.0,0.00031988,7]
[335471578,1724251842847,-153.316594,0.00031988,7]
[335471579,1724251842857,-151.0,0.00031988,7]
[335471580,1724251842866,-151.0,0.00031988,7]
[335471581,1724251842876,-18138.62470697,0.00031999,2]
[335471582,1724251842891,-17505.89369761,0.00031999,2]
[335471583,1724251843001,-277.68803325,0.00024442,2]
[335471584,1724251843011,-154.74467129,0.00024571,2]
[335471585,1724251843021,-5684.03001114,0.00029545,15]
[335471586,1724251843032,-23815.77255517,0.00029545,15]
[335471587,1724251843042,-33715.56402133,0.00031999,2]
[335471588,1724251843052,-151.0,0.00031999,7]
[335471589,1724251843061,-151.0,0.00031999,7]
[335471590,1724251843071,-151.0,0.00031999,7]
[335471592,1724251843081,-151.0,0.00031999,7]
[335471594,1724251843090,-151.0,0.00031999,7]
[335471596,1724251843099,-10000.0,0.00032,24]
[335471597,1724251843109,-408.49,0.00032,7]
[335471599,1724251843119,-1000.0,0.00032,32]
[335471602,1724251843129,-300.0,0.00032,5]
[335471603,1724251843138,-700.0,0.0003209,7]
[335471604,1724251843148,-700.0,0.00032126,7]
[335471605,1724251843158,-500.0,0.00032186,7]
[335471606,1724251843168,-842.81250894,0.00032215,2]
[335471607,1724251843177,-180.059,0.00032265,2]
[335471608,1724251843189,-181.475237,0.00032265,2]
[335471609,1724251843199,-168.423271,0.00032265,2]
[335471610,1724251843208,-150.112233,0.000323,8]
[335471611,1724251843218,-673.14098692,0.00032363,7]
[335471612,1724251843229,-150.112233,0.000324,5]
[335471613,1724251843238,-3218.19363113,0.00032592,2]
[335471614,1724251843248,-842.81250894,0.00032599,2]
[335471615,1724251843257,-700.0,0.00032603,7]
[335471616,1724251843267,-151.0,0.0003277,7]
[335471617,1724251843276,-151.0,0.0003277,7]
[335471618,1724251843285,-151.0,0.0003278,7]
[335471619,1724251843294,-154.058903,0.0003278,7]
[335471620,1724251843305,-154.481647,0.0003278,7]
[335471621,1724251843315,-151.0,0.0003278,7]
[335471622,1724251843325,-4310.34,0.000328,14]
[335471623,1724251843335,-211.39,0.000328,31]
[335471624,1724251843345,-211.39,0.000328,31]
[335471625,1724251843355,-211.39,0.000328,31]
[335471627,1724251843365,-211.39,0.000328,31]